bitfinex/quotes_SOLUSD_20220208
["timestamp","ask_amount","ask_price","bid_price","bid_amount"]
[1644312413941,6.41574,113.66,113.59,32.8766]
[1644312415643,6.41574,113.66,113.59,26.8766]
[1644312416240,5.91574,113.66,113.59,26.8766]
[1644312417641,5.91574,113.66,113.59,26.6266]
[1644312418843,5.91574,113.66,113.59,26.8766]
[1644312419044,5.91574,113.66,113.59,26.6266]
[1644312419546,13.1995,113.69,113.59,26.6266]
[1644312419852,19.61524,113.69,113.59,26.8766]
[1644312421647,6.41574,113.69,113.6,2.10775549]
[1644312421848,102.39731974,113.71,113.62,13.1952]
[1644312422050,102.39731974,113.71,113.62,33.2212]
[1644312422247,102.39731974,113.71,113.63,2.10775549]
[1644312422648,1.80696557,113.7,113.63,8.35775549]
[1644312423248,1.80696557,113.7,113.65,13.1923]
[1644312423647,1.80696557,113.7,113.65,19.4423]
[1644312424447,1.80696557,113.7,113.65,19.1923]
[1644312424648,1.80696557,113.7,113.65,19.4423]
[1644312425147,1.80696557,113.7,113.65,19.1923]
[1644312425646,13.1933,113.74,113.65,19.1923]
[1644312425847,1.80696557,113.73,113.65,6.0]
[1644312426052,19.39926557,113.73,113.65,6.0]
[1644312426248,19.39926557,113.73,113.63,6.0]
[1644312426249,15.00226557,113.73,113.63,6.0]
[1644312426449,16.22695836,113.73,113.63,6.0]
[1644312426650,15.00226557,113.73,113.62,42.1025]
[1644312426949,15.00226557,113.73,113.63,2.10775549]
[1644312427249,15.00226557,113.73,113.63,21.55275549]
[1644312427852,15.00226557,113.73,113.63,13.445]
[1644312428051,15.00226557,113.73,113.63,19.445]
[1644312428251,4.398,113.72,113.63,6.25]
[1644312428450,13.1969,113.71,113.63,6.25]
[1644312428854,15.30465549,113.71,113.63,6.0]
[1644312429253,15.30465549,113.71,113.62,36.1025]
[1644312429254,13.1969,113.71,113.62,42.1025]
[1644312429454,1.80696557,113.73,113.62,55.2991]
[1644312429754,1.80696557,113.7,113.62,55.2991]
[1644312429954,1.80696557,113.7,113.62,57.40685549]
[1644312430154,1.80696557,113.7,113.62,2.10775549]
[1644312430363,6.50675549,113.69,113.58,0.024]
[1644312430556,2.10775549,113.69,113.58,0.024]
[1644312430777,6.50775549,113.68,113.58,0.024]
[1644312431055,13.2019,113.67,113.58,0.024]
[1644312431257,15.30965549,113.67,113.58,0.024]
[1644312431456,2.10775549,113.66,113.58,0.024]
[1644312431658,6.50775549,113.66,113.56,546.9000294]
[1644312431857,6.50775549,113.66,113.56,501.2946294]
[1644312432262,19.18775549,113.66,113.55,0.024]
[1644312432562,14.78775549,113.66,113.55,0.024]
[1644312432762,13.2063,113.64,113.55,0.024]
[1644312436266,1.80696557,113.63,113.55,0.024]
[1644312436470,1.80696557,113.63,113.55,13.2284]
[1644312436668,1.80696557,113.63,113.56,2.10337484]
[1644312436868,6.557e-05,113.63,113.56,14.78337484]
[1644312437069,6.557e-05,113.63,113.57,47.9408]
[1644312437268,6.557e-05,113.63,113.58,12.68]
[1644312437666,6.557e-05,113.63,113.58,21.03337484]
[1644312437867,6.557e-05,113.63,113.59,2.10337484]
[1644312438072,6.557e-05,113.63,113.58,13.4502]
[1644312438282,6.557e-05,113.63,113.57,47.9408]
[1644312438483,6.557e-05,113.63,113.57,53.9408]
[1644312439182,6.557e-05,113.63,113.56,2.12737484]
[1644312442085,6.557e-05,113.63,113.56,15.33077484]
[1644312442286,6.557e-05,113.63,113.56,21.33077484]
[1644312442488,6.557e-05,113.63,113.56,15.33077484]
[1644312442691,6.557e-05,113.63,113.56,15.30677484]
[1644312443789,6.557e-05,113.63,113.56,15.55677484]
[1644312444190,6.557e-05,113.63,113.56,22.03192484]
[1644312445094,6.557e-05,113.63,113.56,28.03192484]
[1644312445295,6.557e-05,113.63,113.56,22.03192484]
[1644312446096,6.557e-05,113.63,113.56,28.03192484]
[1644312447001,6.557e-05,113.63,113.57,59.1563]
[1644312447197,6.557e-05,113.63,113.58,19.67361]
[1644312447398,6.557e-05,113.63,113.59,23.3831]
[1644312447597,6.557e-05,113.63,113.59,31.48647484]
[1644312447798,6.557e-05,113.63,113.59,31.73647484]
[1644312447998,6.557e-05,113.63,113.59,38.20991484]
[1644312448200,6.557e-05,113.63,113.59,36.10654]
[1644312448500,6.557e-05,113.63,113.59,30.10654]
[1644312449106,6.557e-05,113.63,113.59,43.30534]
[1644312449302,6.557e-05,113.63,113.59,29.85654]
[1644312451705,6.557e-05,113.63,113.59,38.20991484]
[1644312452504,6.557e-05,113.63,113.59,50.88991484]
[1644312452705,6.557e-05,113.63,113.59,64.08931484]
[1644312454208,6.557e-05,113.63,113.59,6.47344]
[1644312454610,5.12575836,113.71,113.59,6.47344]
[1644312454810,13.90469279,113.7,113.59,6.47344]
[1644312455007,1.22469279,113.69,113.59,6.47344]
[1644312455208,12.68,113.69,113.59,6.47344]
[1644312455407,16.01244828,113.69,113.59,6.47344]
[1644312455608,13.90469279,113.69,113.59,6.47344]
[1644312455808,13.2025,113.67,113.59,6.47344]
[1644312456511,45.22959279,113.7,113.59,6.72344]
[1644312456712,1.22469279,113.7,113.59,31.93541484]
[1644312456910,1.22469279,113.7,113.59,37.93541484]
[1644312456911,13.2,113.69,113.59,37.93541484]
[1644312457710,13.2,113.69,113.59,51.13471484]
[1644312459813,14.42469279,113.69,113.59,37.68541484]
[1644312460011,4.399,113.68,113.59,29.58204]
[1644312460211,13.2024,113.67,113.59,29.58204]
[1644312460612,14.42709279,113.67,113.59,29.58204]
[1644312461713,13.2024,113.67,113.59,29.58204]
[1644312463216,13.2024,113.67,113.59,29.83204]
[1644312466437,1.22469279,113.68,113.59,29.83204]
[1644312466636,14.42459279,113.69,113.6,2.10337484]
[1644312466840,1.22469279,113.69,113.61,6.47231]
[1644312467039,1.22469279,113.7,113.61,17.60831]
[1644312467239,1.22469279,113.7,113.62,2.10337484]
[1644312467441,1.22469279,113.7,113.63,6.47117]
[1644312468242,14.42229279,113.71,113.63,6.47117]
[1644312468442,1.22469279,113.7,113.63,6.47117]
[1644312468642,14.42349279,113.7,113.63,6.47117]
[1644312470245,1.22469279,113.69,113.63,6.47117]
[1644312470445,13.2013,113.68,113.63,6.47117]
[1644312470847,14.42599279,113.68,113.63,6.47117]
[1644312471247,13.2013,113.68,113.63,6.47117]
[1644312471460,1.22469279,113.69,113.63,6.47117]
[1644312471646,1.22469279,113.69,113.63,17.30317]
[1644312471846,14.42339279,113.7,113.63,17.30317]
[1644312472046,14.42339279,113.7,113.64,2.10337484]
[1644312472250,14.42339279,113.7,113.63,17.30317]
[1644312472251,14.42339279,113.7,113.63,6.47117]
[1644312473047,14.42339279,113.7,113.61,45.977]
[1644312473247,14.42339279,113.7,113.61,46.227]
[1644312475149,14.42339279,113.7,113.61,6.0]
[1644312475348,13.2008,113.68,113.58,75.436]
[1644312475547,14.42549279,113.68,113.58,71.037]
[1644312476551,14.42549279,113.68,113.58,84.2376]
[1644312476749,14.42549279,113.68,113.58,84.4876]
[1644312476953,14.42549279,113.68,113.58,90.4876]
[1644312477151,1.22469279,113.69,113.58,90.4876]
[1644312478654,14.42359279,113.69,113.58,90.4876]
[1644312478956,14.42359279,113.69,113.58,90.2376]
[1644312479156,1.22469279,113.68,113.58,84.2376]
[1644312479657,1.22469279,113.68,113.58,71.037]
[1644312480263,1.22469279,113.68,113.58,71.287]
[1644312480459,1.22469279,113.68,113.58,71.037]
[1644312480858,13.2011,113.67,113.58,84.2376]
[1644312481058,1.22469279,113.68,113.58,90.2376]
[1644312481458,1.22469279,113.69,113.58,92.34097484]
[1644312481661,1.22469279,113.7,113.59,12.68]
[1644312481860,1.22469279,113.7,113.6,29.3684]
[1644312482058,1.22469279,113.71,113.6,37.47177484]
[1644312482259,1.22469279,113.72,113.62,13.195]
[1644312482462,1.22469279,113.71,113.62,13.195]
[1644312482764,1.22469279,113.71,113.62,19.445]
[1644312482963,14.42139279,113.71,113.62,13.195]
[1644312483165,1.22469279,113.7,113.6,24.9694]
[1644312483362,1.22469279,113.7,113.6,30.9694]
[1644312483966,1.22469279,113.7,113.6,44.1664]
[1644312485166,14.42119279,113.71,113.6,44.1664]
[1644312485566,14.42119279,113.71,113.6,44.4164]
[1644312486068,14.42119279,113.71,113.61,2.09825807]
[1644312486270,14.42119279,113.71,113.61,15.54425807]
[1644312486471,14.42119279,113.71,113.61,13.446]
[1644312486772,14.42119279,113.71,113.61,19.446]
[1644312487473,17.079,113.73,113.62,63.0]
[1644312487672,1.22891586,113.73,113.62,25.8747]
[1644312487874,91.85228857,113.74,113.63,19.4020297]
[1644312488074,90.80548857,113.74,113.64,12.68]
[1644312488273,2.43145147,113.79,113.64,63.68464667]
[1644312488471,2.43145147,113.82,113.65,38.68561677]
[1644312488673,2.43145147,113.82,113.66,12.68]
[1644312488873,2.43145147,113.82,113.67,4.394]
[1644312489073,2.43145147,113.83,113.68,59.1759]
[1644312489372,2.43145147,113.84,113.69,4.394]
[1644312489673,15.64654402,113.85,113.7,37.6085]
[1644312489871,15.64654402,113.85,113.71,17.5764]
[1644312489872,2.46534402,113.85,113.71,17.5764]
[1644312490073,15.61285147,113.84,113.72,60.2351]
[1644312490271,13.1814,113.84,113.72,60.4851]
[1644312490473,13.1814,113.84,113.72,68.58335807]
[1644312490674,13.1814,113.84,113.73,2.09825807]
[1644312491177,13.21419255,113.85,113.74,13.1821]
[1644312491376,13.21419255,113.85,113.74,36.8342]
[1644312491576,0.03389255,113.85,113.75,2.09825807]
[1644312491775,0.03389255,113.86,113.76,12.68]
[1644312491975,0.03389255,113.86,113.75,6.0]
[1644312492179,6.50075549,113.88,113.75,6.0]
[1644312492180,25.92655803,113.94,113.76,12.68]
[1644312492376,158.53,113.99,113.76,12.68]
[1644312492377,201.45424432,114.0,113.88,158.53]
[1644312492578,201.45424432,114.0,113.9,158.53]
[1644312492579,138.10413467,114.0,113.9,158.53]
[1644312492775,138.10413467,114.0,113.94,158.53]
[1644312492979,89.19723467,114.0,113.94,158.53]
[1644312493177,0.2,114.1,113.96,158.53]
[1644312493375,6.41574,114.09,113.97,12.68]
[1644312493576,6.41574,114.09,113.97,18.68]
[1644312494576,6.41574,114.09,113.97,20.78331105]
[1644312494976,0.2,114.1,113.97,18.68]
[1644312495177,4.384,114.09,113.97,18.68]
[1644312495379,4.384,114.09,113.97,179.56331105]
[1644312495779,4.384,114.09,113.97,179.31331105]
[1644312495978,4.384,114.09,113.97,177.21]
[1644312496679,4.384,114.09,113.97,177.46]
[1644312496879,4.384,114.09,113.97,177.21]
[1644312497279,4.384,114.09,113.97,6.0]
[1644312497481,4.384,114.09,113.98,10.53]
[1644312497680,0.2,114.1,113.98,16.53]
[1644312500310,4.384,114.09,113.98,16.53]
[1644312500714,0.2,114.1,113.98,36.21806601]
[1644312501014,0.2,114.1,113.98,40.60206601]
[1644312501611,0.2,114.1,113.99,144.8118]
[1644312501814,0.2,114.1,114.0,142.19]
[1644312502014,0.2,114.1,114.0,172.97206601]
[1644312502217,0.2,114.1,114.01,2.10331105]
[1644312502413,0.2,114.1,114.02,10.53]
[1644312502615,0.2,114.1,114.02,16.53]
[1644312502817,0.2,114.1,114.02,10.53]
[1644312503114,0.2,114.1,113.97,4.383]
[1644312503318,0.2,114.1,113.99,10.53]
[1644312504915,0.2,114.1,113.99,16.53]
[1644312505716,0.2,114.1,113.99,16.78]
[1644312506118,0.2,114.1,113.99,18.88775549]
[1644312506418,0.2,114.1,113.99,16.78]
[1644312506616,0.2,114.1,114.0,2.10775549]
[1644312506817,0.2,114.1,114.0,12.63775549]
[1644312507016,0.2,114.1,114.0,16.78]
[1644312507216,0.2,114.1,114.0,16.53]
[1644312507416,0.2,114.1,114.0,10.53]
[1644312508016,4.384,114.09,114.0,10.53]
[1644312508220,4.384,114.09,113.97,10.53]
[1644312508618,4.384,114.09,113.97,16.53]
[1644312509619,0.2,114.1,113.97,16.53]
[1644312510018,0.2,114.1,113.97,16.78]
[1644312510822,4.384,114.09,113.97,10.53]
[1644312511021,4.384,114.09,113.95,24.6784]
[1644312511224,10.73,114.1,113.95,24.6784]
[1644312511425,113.3,114.1,113.96,10.53]
[1644312511822,113.3,114.1,113.97,2.10775549]
[1644312512023,113.3,114.1,113.98,10.53]
[1644312512222,0.2,114.1,113.98,10.53]
[1644312513022,0.2,114.1,113.98,16.53]
[1644312513830,0.2,114.1,113.98,16.78]
[1644312514230,0.2,114.1,113.98,10.53]
[1644312514530,4.68516885,114.09,113.96,10.53]
[1644312514730,15.21516885,114.09,113.95,24.6784]
[1644312514930,14.914,114.09,113.95,24.6784]
[1644312515731,28.0737,114.09,113.95,41.2084]
[1644312516030,23.6897,114.09,113.95,41.2084]
[1644312516229,23.6897,114.09,113.95,41.4584]
[1644312516431,0.2,114.1,113.95,41.4584]
[1644312516630,0.2,114.1,113.96,4.385]
[1644312516830,0.2,114.1,113.97,10.53]
[1644312517051,0.2,114.1,113.96,10.53]
[1644312517231,4.384,114.09,113.95,6.0]
[1644312517629,10.53,114.08,113.92,56.62614163]
[1644312517829,4.385,114.07,113.92,56.87614163]
[1644312518030,10.53,114.08,113.92,56.87614163]
[1644312518429,13.1632,114.06,113.92,56.87614163]
[1644312518630,21.3832,114.06,113.92,56.87614163]
[1644312519531,13.1632,114.06,113.92,56.87614163]
[1644312520331,126.58514399,114.06,113.92,26.08514163]
[1644312520532,10.53,114.05,113.9,4.386]
[1644312520733,13.1689,114.01,113.89,15.55514163]
[1644312520931,13.1689,114.01,113.89,21.55514163]
[1644312521534,113.1,114.06,113.89,21.55514163]
[1644312521834,13.1635,114.05,113.9,75.34977918]
[1644312522031,46.0518,114.08,113.9,79.73577918]
[1644312522231,4.386,114.07,113.91,32.68912081]
[1644312522431,46.0518,114.08,113.92,10.53]
[1644312522631,46.0518,114.08,113.92,32.08514163]
[1644312522835,46.0518,114.08,113.92,32.33514163]
[1644312523335,10.53,114.07,113.92,32.33514163]
[1644312523733,23.6912,114.07,113.92,16.53]
[1644312523936,28.0772,114.07,113.92,16.53]
[1644312525537,17.5472,114.07,113.92,64.7369763]
[1644312525737,13.1612,114.07,113.93,6.45413]
[1644312525937,13.1612,114.07,113.94,10.53]
[1644312526138,17.5431,114.09,113.94,27.79275549]
[1644312526339,13.1581,114.09,113.95,2.10775549]
[1644312526538,23.2878,114.1,113.96,13.1558]
[1644312526737,0.2,114.1,113.96,39.49094163]
[1644312526940,0.2,114.1,113.97,25.39655549]
[1644312527138,0.2,114.1,113.98,34.4495]
[1644312527638,0.2,114.1,113.99,6.45073]
[1644312527837,0.2,114.1,114.0,10.53]
[1644312528038,0.2,114.1,114.01,6.4496]
[1644312530545,13.357,114.1,114.01,6.4496]
[1644312531041,17.74,114.1,114.01,6.4496]
[1644312531842,13.357,114.1,114.01,12.4496]
[1644312535466,11.857,114.1,114.01,12.4496]
[1644312535867,13.1532,114.12,114.02,2.10339697]
[1644312536167,135.6916,114.15,114.02,2.10339697]
[1644312536168,66.6636,114.17,114.03,6.44847]
[1644312536366,66.6636,114.17,114.03,63.64177]
[1644312536568,66.6636,114.17,114.03,83.25816697]
[1644312537169,66.6636,114.17,114.03,81.15477]
[1644312537369,71.0456,114.17,114.03,81.15477]
[1644312537772,13.1485,114.16,114.03,94.30357]
[1644312538370,13.1485,114.16,114.03,94.05357]
[1644312539773,13.1485,114.16,114.03,94.30357]
[1644312539972,13.1485,114.16,114.03,94.05357]
[1644312540673,22.9595,114.16,114.03,53.11177]
[1644312540874,4.382,114.15,114.03,52.61177]
[1644312541074,13.1544,114.12,114.03,52.61177]
[1644312541480,22.9693,114.16,114.03,71.24516697]
[1644312541675,22.8269,114.17,114.03,84.39456697]
[1644312541973,22.8269,114.17,114.03,82.54117]
[1644312542774,13.15,114.14,114.03,82.54117]
[1644312545280,13.15,114.14,114.03,95.72727]
[1644312545480,13.15,114.14,114.03,45.15937]
[1644312545683,13.45610374,114.14,114.03,5.94847]
[1644312545881,23.98610374,114.14,114.03,5.94847]
[1644312546483,13.15,114.14,114.03,5.94847]
[1644312546983,13.15,114.14,114.03,12.19847]
[1644312547182,13.15,114.14,114.03,11.94847]
[1644312547883,13.15,114.14,114.03,12.19847]
[1644312548885,13.15,114.14,114.03,25.34837]
[1644312549685,13.15,114.14,114.03,11.44847]
[1644312550386,13.15,114.14,114.03,13.54684266]
[1644312550588,13.15,114.14,114.03,25.27784266]
[1644312550894,13.15,114.14,114.04,10.53]
[1644312551090,13.15,114.14,114.05,6.44734]
[1644312551689,13.15,114.14,114.05,12.44734]
[1644312551890,13.15,114.14,114.05,6.44734]
[1644312553191,15.25775549,114.14,114.05,6.44734]
[1644312553494,0.31705783,114.12,113.98,10.53]
[1644312553689,13.1569,114.09,114.0,458.75631053]
[1644312554290,13.1569,114.09,114.01,2.09837266]
[1644312554692,13.1569,114.09,114.01,6.0]
[1644312555090,13.1569,114.09,114.0,112.0203]
[1644312555291,13.1521,114.11,114.01,13.1527]
[1644312555590,13.1521,114.11,114.01,42.8106]
[1644312556292,13.1521,114.11,114.01,29.6579]
[1644312556691,13.1521,114.11,114.02,12.62837266]
[1644312556891,13.1499,114.13,114.02,12.62837266]
[1644312557092,13.1499,114.13,114.02,18.87837266]
[1644312557293,13.1499,114.13,114.02,6.25]
[1644312557492,13.1499,114.13,114.02,5.75]
[1644312557692,13.1499,114.13,114.03,13.1501]
[1644312558315,13.1499,114.13,114.03,13.4001]
[1644312558493,13.1499,114.13,114.03,13.1501]
[1644312558694,13.1499,114.13,114.03,13.4001]
[1644312559093,13.1499,114.13,114.02,12.63]
[1644312559493,15.25765549,114.13,114.02,12.63]
[1644312560495,15.25765549,114.13,114.02,18.63]
[1644312560896,13.1499,114.13,114.02,18.63]
[1644312561302,13.1499,114.13,114.02,32.0314]
[1644312561501,13.1499,114.13,114.03,2.09837266]
[1644312561698,13.1499,114.13,114.03,20.97837266]
[1644312562399,13.1499,114.13,114.03,18.88]
[1644312562700,13.1499,114.13,114.03,32.0303]
[1644312563299,13.1499,114.13,114.03,31.7803]
[1644312564601,13.1499,114.13,114.03,31.2803]
[1644312565002,13.1499,114.13,114.03,18.13]
[1644312565201,16.83690138,114.13,114.03,18.13]
[1644312566033,13.1499,114.13,114.04,2.09837266]
[1644312566234,13.1499,114.13,114.04,12.63]
[1644312566439,13.1499,114.13,114.04,31.7792]
[1644312566637,16.83440138,114.15,114.04,33.87757266]
[1644312566836,13.1474,114.15,114.04,34.12757266]
[1644312567536,13.1474,114.15,114.04,31.7792]
[1644312567736,13.1474,114.15,114.04,46.49142522]
[1644312567938,13.1474,114.15,114.04,56.85842522]
[1644312568137,13.1474,114.15,114.04,80.63042522]
[1644312568743,13.1474,114.15,114.04,80.88042522]
[1644312569145,13.1474,114.15,114.04,66.1682]
[1644312571241,16.83210138,114.17,114.04,66.1682]
[1644312571445,16.83210138,114.17,114.05,24.0314]
[1644312571647,16.83210138,114.17,114.08,13.1445]
[1644312571842,13.1451,114.17,114.08,24.4505]
[1644312572242,15.25285549,114.17,114.08,11.306]
[1644312572442,15.25285549,114.17,114.05,24.0314]
[1644312572642,15.25285549,114.17,114.07,6.0]
[1644312573244,15.25285549,114.17,114.06,18.63]
[1644312573441,15.25285549,114.17,114.06,12.63]
[1644312573644,13.1539,114.12,114.0,109.7848]
[1644312573842,21.8469,114.12,114.0,143.737]
[1644312574046,2.10775549,114.11,114.0,143.737]
[1644312574642,9.689,114.11,114.0,143.737]
[1644312574844,13.1562,114.08,114.0,143.737]
[1644312575043,23.0582,114.08,114.0,71.2377]
[1644312575847,23.0582,114.08,113.99,17.011]
[1644312576145,23.0582,114.08,113.99,12.63]
[1644312576345,13.1562,114.08,113.99,12.63]
[1644312576648,13.1562,114.08,114.0,2.09837266]
[1644312576846,13.1562,114.08,113.99,6.25]
[1644312577069,13.1562,114.08,113.98,18.63]
[1644312577245,13.1562,114.08,113.98,18.88]
[1644312578245,13.1562,114.08,113.98,12.63]
[1644312579250,15.26395549,114.08,113.98,12.63]
[1644312580450,15.26395549,114.08,113.95,136.88542522]
[1644312580652,15.26395549,114.08,113.95,155.51542522]
[1644312581756,13.1562,114.08,113.96,14.71222522]
[1644312581952,13.1562,114.08,113.97,12.63]
[1644312582152,13.1562,114.08,113.97,18.63]
[1644312583252,13.1562,114.08,113.97,42.4214]
[1644312584778,13.1562,114.08,113.97,42.6714]
[1644312586179,13.1562,114.08,113.97,42.4214]
[1644312586579,13.1562,114.08,113.97,55.13889045]
[1644312587179,13.1562,114.08,113.97,53.0424]
[1644312587379,13.1562,114.08,113.97,55.13889045]
[1644312587578,13.1562,114.08,113.97,53.0424]
[1644312587779,13.1562,114.08,113.97,55.8279]
[1644312588580,13.1562,114.08,113.97,55.5779]
[1644312588780,13.1562,114.08,113.97,55.8279]
[1644312589381,13.1562,114.08,113.97,57.92439045]
[1644312589585,13.1562,114.08,113.97,55.8279]
[1644312591486,13.1562,114.08,113.97,57.92439045]
[1644312592286,13.1562,114.08,113.97,55.8279]
[1644312593283,13.1562,114.08,113.98,2.09649045]
[1644312593483,13.1562,114.08,113.98,12.63]
[1644312593682,13.1562,114.08,113.99,13.1551]
[1644312594082,13.1562,114.08,113.99,19.4051]
[1644312594986,13.153,114.1,114.0,12.63]
[1644312595184,2.46092711,114.14,114.02,13.1511]
[1644312595384,116.78700138,114.17,114.03,12.63]
[1644312595385,2.46092711,114.15,114.03,12.63]
[1644312595584,2.46092711,114.15,114.04,47.1192]
[1644312595786,4.92102318,114.16,114.05,12.63]
[1644312596188,2.46092711,114.15,114.05,18.63]
[1644312596786,13.1484,114.14,114.06,6.44677]
[1644312597388,15.60932711,114.14,114.06,6.44677]
[1644312597690,13.1484,114.14,114.06,6.44677]
[1644312600091,13.1458,114.16,114.06,21.42321373]
[1644312600293,13.1458,114.16,114.06,27.42321373]
[1644312600591,13.1458,114.16,114.06,25.32677]
[1644312600792,2.46092711,114.18,114.06,37.07821373]
[1644312600994,8.06800138,114.21,114.07,47.3822]
[1644312600995,2.46092711,114.19,114.07,47.3822]
[1644312601193,15.60212711,114.2,114.08,19.07564]
[1644312601393,15.60212711,114.2,114.08,21.17208373]
[1644312601594,15.60212711,114.2,114.08,27.42208373]
[1644312601792,13.1412,114.2,114.09,2.09644373]
[1644312601993,13.1412,114.2,114.1,19.07451]
[1644312602193,13.1412,114.2,114.1,38.21571]
[1644312602393,15.60212711,114.2,114.1,38.21571]
[1644312602794,13.1412,114.2,114.1,38.21571]
[1644312603695,13.1412,114.2,114.1,25.07451]
[1644312604394,13.1412,114.2,114.1,12.44451]
[1644312604395,17.7098826,114.2,114.1,12.44451]
[1644312604995,2.46184435,114.19,114.1,12.44451]
[1644312605196,17.7098826,114.2,114.1,12.44451]
[1644312605399,13.147,114.17,114.1,12.44451]
[1644312605798,15.25475549,114.17,114.1,12.44451]
[1644312606498,13.147,114.17,114.1,12.44451]
[1644312606699,13.147,114.17,114.1,12.69451]
[1644312606898,13.147,114.17,114.1,12.44451]
[1644312608699,13.147,114.17,114.11,0.4575]
[1644312608899,13.147,114.17,114.12,6.44338]
[1644312609301,14.37562815,114.17,114.12,6.44338]
[1644312609700,13.147,114.17,114.12,6.44338]
[1644312611202,16.48338364,114.17,114.12,6.44338]
[1644312611602,1.22862815,114.16,114.12,6.44338]
[1644312611801,13.1475,114.15,114.12,6.44338]
[1644312612202,13.1475,114.15,114.13,0.4575]
[1644312612401,13.1475,114.15,114.14,6.44225]
[1644312612601,13.1475,114.15,114.14,1e-08]
[1644312613702,13.1475,114.15,114.13,0.00750001]
[1644312613903,15.25525549,114.15,114.06,6.44677]
[1644312614104,29.11388364,114.15,114.06,6.44677]
[1644312614304,13.156,114.11,114.06,6.44677]
[1644312614505,21.183,114.11,114.01,518.96409]
[1644312614705,13.156,114.11,114.02,6.44903]
[1644312614905,12.656,114.11,114.02,6.44903]
[1644312615306,12.656,114.11,114.02,12.44903]
[1644312615507,2.10775549,114.1,114.02,6.44903]
[1644312615705,13.1589,114.07,113.93,388.24760338]
[1644312615906,23.7379,114.07,113.94,6.45356]
[1644312616105,2.10775549,114.06,113.94,6.45356]
[1644312616305,14.73775549,114.06,113.94,6.45356]
[1644312616508,15.96638364,114.06,113.94,6.45356]
[1644312616706,2.10775549,114.05,113.94,6.45356]
[1644312616905,13.1634,114.03,113.94,6.45356]
[1644312617309,40.47715549,114.03,113.94,6.45356]
[1644312617507,4.386,114.02,113.94,6.45356]
[1644312617707,12.63,114.01,113.94,6.45356]
[1644312618109,13.169,114.0,113.94,6.45356]
[1644312618508,13.169,114.0,113.88,36.0956]
[1644312618709,13.169,114.0,113.88,48.80256]
[1644312618909,13.169,114.0,113.88,42.80256]
[1644312619309,13.169,114.0,113.88,42.55256]
[1644312619910,2.10775549,113.99,113.88,19.08696]
[1644312620110,2.10775549,113.99,113.88,6.45696]
[1644312620111,13.1732,113.96,113.88,6.45696]
[1644312620510,2.10775549,113.95,113.88,6.45696]
[1644312621313,43.9085,113.97,113.88,6.45696]
[1644312621518,43.9085,113.97,113.83,12.63]
[1644312621713,4.388,113.99,113.84,19.08923]
[1644312621911,2.10775549,114.0,113.84,19.08923]
[1644312622110,2.10775549,114.0,113.84,25.08923]
[1644312622311,2.10775549,113.99,113.84,25.33923]
[1644312622713,13.1686,113.97,113.85,24.0053]
[1644312622913,13.1686,113.97,113.86,12.63]
[1644312623513,13.1686,113.97,113.86,41.3437]
[1644312624012,13.1686,113.97,113.86,41.5937]
[1644312625511,15.27635549,113.97,113.86,41.3437]
[1644312625711,15.27635549,113.97,113.86,41.5937]
[1644312626111,15.27635549,113.97,113.86,41.3437]
[1644312626112,13.1686,113.97,113.86,41.3437]
[1644312626512,13.1686,113.97,113.86,41.5937]
[1644312626713,35.9591,113.99,113.86,62.3992]
[1644312626912,13.1667,113.99,113.87,24.612]
[1644312627113,15.27445549,113.99,113.87,43.242]
[1644312627313,15.27445549,113.99,113.87,37.242]
[1644312627714,13.1667,113.99,113.87,49.678]
[1644312627917,13.1667,113.99,113.88,2.09644373]
[1644312628115,4.388,114.01,113.88,2.09644373]
[1644312628116,13.1644,114.01,113.89,12.63]